fUST/lending_fUST_20260322
["ID","MTS","AMOUNT","RATE_DAILY","PERIOD"]
[408710095,1774164645185,-1353.83397299,0.00021575,2]
[408710096,1774164645195,-1960.58824619,0.00021575,2]
[408710097,1774164645205,-341.91091446,0.00021575,2]
[408710098,1774164645215,-852.69972819,0.00021575,2]
[408710099,1774164645224,-1699.12323776,0.00021575,2]
[408710100,1774164645234,-2618.2481025,0.00021581,2]
[408710101,1774164645244,-719.04747942,0.00021581,2]
[408710102,1774164645253,-151.0,0.000216,3]
[408710103,1774164645262,-151.0,0.000216,4]
[408710104,1774164645271,-151.0,0.000216,4]
[408710105,1774164645280,-1034.43,0.000216,2]
[408710106,1774164645289,-2715.12328229,0.00021636,2]
[408710107,1774164645299,-745.65223616,0.00021636,2]
[408710108,1774164645308,-461.67526834,0.00021689,2]
[408710109,1774164645318,-557.5788265,0.00021689,2]
[408710110,1774164645327,-2230.315306,0.00021689,2]
[408710111,1774164645337,-2815.58284374,0.00021691,2]
[408710112,1774164645392,-773.2413689,0.00021691,2]
[408710113,1774164645404,-2532.09245667,0.00021731,2]
[408710114,1774164645414,-500.0,0.00021739,2]
[408710115,1774164645423,-2099.52,0.00021739,2]
[408710116,1774164645432,-500.82151471,0.00021739,2]
[408710117,1774164645441,-1619.12,0.00021739,2]
[408710118,1774164645451,-641.23,0.00021739,2]
[408710119,1774164645460,-500.0,0.00021739,2]
[408710120,1774164645472,-2186.95,0.00021739,2]
[408710121,1774164645481,-654.84,0.00021739,2]
[408710122,1774164645490,-500.0,0.00021739,2]
[408710123,1774164645500,-763.91,0.00021739,2]
[408710124,1774164645509,-155.54864328,0.00021739,2]
[408710125,1774164645518,-500.0,0.00021739,2]
[408710126,1774164645528,-500.0,0.00021739,2]
[408710127,1774164645537,-839.98,0.00021739,2]
[408710128,1774164645546,-2919.75940895,0.00021746,2]
[408710129,1774164645555,-801.85129955,0.00021746,2]
[408710130,1774164645565,-2187.0190941,0.00021781,2]
[408710131,1774164645574,-2000.0,0.00021791,2]
[408710132,1774164645584,-1656.80619081,0.00021791,2]
[408710133,1774164645594,-2001.12838769,0.00021796,2]
[408710134,1774164645604,-450.0,0.00021796,2]
[408710135,1774164645613,-1813.13749008,0.00021796,2]
[408710136,1774164645622,-1342.17,0.00021797,2]
[408710137,1774164645632,-1355.59,0.00021797,2]
[408710138,1774164645641,-509.39,0.00021797,2]
[408710139,1774164645650,-151.0,0.000218,3]
[408710140,1774164645660,-151.0,0.000218,3]
[408710141,1774164645669,-1034.43,0.000218,2]
[408710142,1774164645679,-2505.92717869,0.00021801,2]
[408710143,1774164645688,-831.51979763,0.00021801,2]
[408710144,1774164645697,-189.74891837,0.00021802,17]
[408710145,1774164645707,-1540.9629321,0.00021836,2]
[408710146,1774164645716,-450.0,0.00021836,2]
[408710147,1774164645725,-862.28603014,0.00021856,2]
[408710148,1774164645735,-1500.0,0.00021869,2]
[408710149,1774164645744,-1102.04005768,0.00021876,2]
[408710150,1774164645753,-1500.0,0.00021876,2]
[408710151,1774164645762,-894.19061326,0.00021911,2]
[408710152,1774164645772,-648.3578,0.00021918,2]
[408710153,1774164645781,-1500.0,0.00021949,2]
[408710154,1774164645790,-1500.0,0.00021949,2]
[408710155,1774164645799,-1500.0,0.00021949,2]
[408710156,1774164645809,-927.27566595,0.00021966,2]
[408710157,1774164645818,-205.32,0.00021976,2]
[408710158,1774164645827,-160.0,0.00022,7]
[408710159,1774164645836,-1036.9686975,0.00022,2]
[408710160,1774164645845,-1034.43,0.00022,2]
[408710161,1774164645857,-961.58486559,0.00022021,2]
[408710162,1774164645866,-1642.81,0.0002203,2]
[408710163,1774164645874,-670.93,0.0002203,2]
[408710164,1774164645884,-500.0,0.0002203,2]
[408710166,1774164645893,-511.69,0.0002203,2]
[408710167,1774164645903,-1427.765,0.00022045,2]
[408710168,1774164645912,-647.898,0.00022045,2]
[408710169,1774164645922,-2191.0,0.00022045,2]
[408710170,1774164645932,-544.656,0.00022045,2]
[408710171,1774164645942,-187.344,0.00022045,2]
[408710172,1774164645952,-438.0,0.00022045,2]
[408710173,1774164645961,-997.16350561,0.00022076,2]
[408710174,1774164645970,-551.03667046,0.00022094,2]
[408710175,1774164645979,-2070.75650227,0.00022094,2]
[408710176,1774164645989,-2000.0,0.00022094,2]
[408710177,1774164645999,-2000.0,0.00022094,2]
[408710178,1774164646008,-903.34646829,0.00022094,2]
[408710179,1774164646017,-2000.0,0.00022094,2]
[408710180,1774164646026,-1200.0,0.00022094,2]
[408710181,1774164646035,-2000.0,0.00022094,2]
[408710182,1774164646044,-2000.0,0.00022094,2]
[408710183,1774164646054,-1500.0,0.000221,2]
[408710184,1774164646063,-1500.0,0.000221,2]
[408710185,1774164646072,-1500.0,0.000221,2]
[408710186,1774164646081,-174.0,0.0002211,6]
[408710187,1774164646091,-350.0,0.0002211,2]
[408710188,1774164646100,-1398.07591981,0.0002211,2]
[408710189,1774164646109,-1500.0,0.0002211,2]
[408710190,1774164646118,-1500.0,0.0002211,2]
[408710191,1774164646127,-177.31173986,0.00022148,2]
[408710192,1774164646136,-500.0,0.00022148,2]
[408710193,1774164646146,-500.0,0.00022148,2]
[408710194,1774164646155,-190.53208228,0.00022148,2]
[408710195,1774164646164,-151.0,0.000222,5]
[408710196,1774164646174,-151.0,0.000222,8]
[408710197,1774164646183,-151.0,0.000222,10]
[408710198,1774164646193,-1034.43,0.000222,2]
[408710199,1774164646202,-472.23819355,0.00022237,2]
[408710200,1774164646211,-578.20924308,0.00022237,2]
[408710201,1774164646220,-2312.83697232,0.00022237,2]
[408710202,1774164646230,-189.74891837,0.00022242,18]
[408710203,1774164646240,-151.0,0.000223,7]
[408710204,1774164646249,-1829.63707929,0.00022339,2]
[408710205,1774164646258,-550.0,0.00022344,2]
[408710206,1774164646268,-205.96913571,0.00022384,2]
[408710207,1774164646277,-151.0,0.000224,8]
[408710208,1774164646286,-151.0,0.000224,10]
[408710209,1774164646296,-1034.43,0.000224,2]
[408710210,1774164646306,-2001.70531901,0.00022417,2]
[408710211,1774164646315,-2000.0,0.00022424,2]
[408710212,1774164646324,-5640.57880189,0.00022447,42]
[408710213,1774164646334,-1342.17,0.00022472,2]
[408710214,1774164646344,-1355.59,0.00022472,2]
[408710215,1774164646354,-509.39,0.00022472,2]
[408710216,1774164646363,-500.0,0.00022473,2]
[408710217,1774164646373,-500.0,0.00022473,2]
[408710218,1774164646382,-500.0,0.00022473,2]
[408710219,1774164646395,-500.0,0.00022473,2]
[408710220,1774164646405,-500.0,0.00022473,2]
[408710221,1774164646414,-500.0,0.00022473,2]
[408710222,1774164646424,-150.0,0.00022473,2]
[408710223,1774164646435,-1342.17,0.00022494,2]
[408710224,1774164646445,-1355.59,0.00022494,2]
[408710225,1774164646454,-509.39,0.00022494,2]
[408710226,1774164646464,-200.0,0.00022494,2]
[408710227,1774164646475,-200.72760642,0.00022494,2]
[408710228,1774164646485,-1642.81,0.00022495,2]
[408710229,1774164646494,-1642.81,0.00022495,2]
[408710230,1774164646504,-1642.81,0.00022495,2]
[408710231,1774164646514,-1642.81,0.00022495,2]
[408710232,1774164646523,-1642.81,0.00022495,2]
[408710233,1774164646532,-1642.81,0.00022495,2]
[408710234,1774164646541,-1642.81,0.00022495,2]
[408710235,1774164646551,-1642.81,0.00022495,2]
[408710236,1774164646560,-1642.81,0.00022495,2]
[408710237,1774164646569,-1642.81,0.00022495,2]
[408710238,1774164646578,-1642.81,0.00022495,2]
[408710239,1774164646588,-1642.81,0.00022495,2]
[408710240,1774164646597,-1642.81,0.00022495,2]
[408710241,1774164646607,-1642.85901009,0.00022495,2]
[408710242,1774164646616,-670.93,0.00022495,2]
[408710243,1774164646625,-670.93,0.00022495,2]
[408710244,1774164646634,-670.93,0.00022495,2]
[408710245,1774164646644,-670.93,0.00022495,2]
[408710246,1774164646653,-670.93,0.00022495,2]
[408710247,1774164646663,-670.93,0.00022495,2]
[408710248,1774164646672,-670.93,0.00022495,2]
[408710249,1774164646681,-670.93,0.00022495,2]
[408710250,1774164646690,-670.93,0.00022495,2]
[408710251,1774164646700,-670.93,0.00022495,2]
[408710252,1774164646709,-670.93,0.00022495,2]
[408710253,1774164646718,-670.93,0.00022495,2]
[408710254,1774164646727,-670.93,0.00022495,2]
[408710255,1774164646736,-670.94742971,0.00022495,2]
[408710256,1774164646746,-500.0,0.00022495,2]
[408710257,1774164646756,-500.0,0.00022495,2]
[408710258,1774164646766,-222.3166629,0.00022495,2]
[408710259,1774164646776,-511.69,0.00022495,2]
[408710260,1774164646785,-511.69,0.00022495,2]
[408710261,1774164646794,-511.69,0.00022495,2]
[408710262,1774164646804,-511.69,0.00022495,2]
[408710263,1774164646813,-511.69,0.00022495,2]
[408710264,1774164646822,-511.69,0.00022495,2]
[408710265,1774164646832,-511.69,0.00022495,2]
[408710266,1774164646841,-511.69,0.00022495,2]
[408710267,1774164646850,-511.69,0.00022495,2]
[408710268,1774164646860,-511.69,0.00022495,2]
[408710269,1774164646869,-511.69,0.00022495,2]
[408710270,1774164646878,-511.69,0.00022495,2]
[408710271,1774164646888,-511.69,0.00022495,2]
[408710272,1774164646898,-511.77461425,0.00022495,2]
[408710273,1774164646908,-2000.0,0.00022497,2]
[408710274,1774164646917,-2001.15977952,0.00022497,2]
[408710275,1774164646926,-2000.0,0.00022497,2]
[408710276,1774164646936,-1342.17,0.00022498,2]
[408710277,1774164646945,-1355.59,0.00022498,2]
[408710278,1774164646954,-509.39,0.00022498,2]
[408710279,1774164646963,-500.0,0.00022499,2]
[408710280,1774164646972,-2099.52,0.00022499,2]
[408710281,1774164646982,-1619.12,0.00022499,2]
[408710282,1774164646991,-641.23,0.00022499,2]
[408710284,1774164646999,-500.0,0.00022499,2]
[408710286,1774164647008,-2186.95,0.00022499,2]
[408710288,1774164647016,-654.84,0.00022499,2]
[408710290,1774164647025,-500.0,0.00022499,2]
[408710292,1774164647035,-763.91,0.00022499,2]
[408710294,1774164647044,-500.0,0.00022499,2]
[408710296,1774164647053,-500.0,0.00022499,2]
[408710298,1774164647062,-839.98,0.00022499,2]
[408710300,1774164647071,-841.966,0.000225,2]
[408710302,1774164647080,-436.69,0.000225,2]
[408710304,1774164647090,-648.98,0.000225,2]
[408710306,1774164647099,-646.89,0.000225,2]
[408710308,1774164647108,-162.0,0.00022583,3]
[408710310,1774164647117,-162.0,0.00022583,3]
[408710312,1774164647127,-200.0,0.00022594,2]
[408710314,1774164647137,-1342.17,0.00022594,2]
[408710316,1774164647146,-1342.17,0.00022594,2]
[408710318,1774164647155,-1355.59,0.00022594,2]
[408710320,1774164647164,-1355.59,0.00022594,2]
[408710322,1774164647173,-509.39,0.00022594,2]
[408710324,1774164647183,-509.39,0.00022594,2]
[408710326,1774164647192,-500.0,0.00022595,2]
[408710328,1774164647201,-500.0,0.00022595,2]
[408710330,1774164647211,-500.0,0.00022595,2]
[408710332,1774164647220,-332.36762785,0.00022595,2]
[408710334,1774164647229,-2099.52,0.00022595,2]
[408710336,1774164647238,-2099.52,0.00022595,2]
[408710337,1774164647249,-2099.52,0.00022595,2]
[408710339,1774164647258,-2099.52,0.00022595,2]
[408710341,1774164647267,-1619.12,0.00022595,2]
[408710343,1774164647278,-1619.12,0.00022595,2]
[408710345,1774164647287,-1619.12,0.00022595,2]
[408710347,1774164647298,-1619.12,0.00022595,2]
[408710349,1774164647307,-437.38258812,0.00022595,2]
[408710351,1774164647316,-641.23,0.00022595,2]
[408710353,1774164647325,-641.23,0.00022595,2]
[408710355,1774164647334,-641.23,0.00022595,2]
[408710357,1774164647342,-641.23,0.00022595,2]
[408710359,1774164647351,-1667.81,0.00022595,2]
[408710361,1774164647360,-2186.95,0.00022595,2]
[408710363,1774164647369,-2186.95,0.00022595,2]
[408710365,1774164647378,-2186.95,0.00022595,2]
[408710367,1774164647388,-2186.95,0.00022595,2]
[408710369,1774164647401,-654.84,0.00022595,2]
[408710371,1774164647411,-654.84,0.00022595,2]
[408710373,1774164647420,-654.84,0.00022595,2]
[408710375,1774164647431,-654.84,0.00022595,2]
[408710377,1774164647440,-500.0,0.00022595,2]
[408710379,1774164647449,-763.91,0.00022595,2]
[408710381,1774164647458,-500.0,0.00022595,2]
[408710383,1774164647468,-763.91,0.00022595,2]
[408710384,1774164647478,-500.0,0.00022595,2]
[408710386,1774164647487,-763.91,0.00022595,2]
[408710388,1774164647496,-500.0,0.00022595,2]
[408710390,1774164647505,-763.91,0.00022595,2]
[408710392,1774164647515,-500.0,0.00022595,2]
[408710394,1774164647524,-500.0,0.00022595,2]
[408710396,1774164647533,-500.0,0.00022595,2]
[408710398,1774164647542,-500.0,0.00022595,2]
[408710400,1774164647551,-500.0,0.00022595,2]
[408710402,1774164647561,-500.0,0.00022595,2]
[408710404,1774164647570,-500.0,0.00022595,2]
[408710406,1774164647579,-500.0,0.00022595,2]
[408710408,1774164647588,-839.98,0.00022595,2]
[408710410,1774164647597,-839.98,0.00022595,2]
[408710412,1774164647606,-839.98,0.00022595,2]
[408710413,1774164647615,-839.98,0.00022595,2]
[408710415,1774164647624,-393.23343722,0.00022595,2]
[408710417,1774164647633,-449.40964254,0.00022595,2]
[408710419,1774164647642,-702.20256647,0.00022595,2]
[408710421,1774164647651,-319.06357346,0.00022595,2]
[408710423,1774164647659,-574.31443223,0.00022595,2]
[408710425,1774164647668,-1021.00343508,0.00022595,2]
[408710427,1774164647677,-1595.31786732,0.00022595,2]
[408710429,1774164647686,-2297.25772894,0.00022595,2]
[408710431,1774164647695,-151.0,0.00022596,3]
[408710433,1774164647704,-151.0,0.00022596,3]
[408710435,1774164647713,-151.0,0.00022596,3]
[408710437,1774164647722,-151.0,0.00022596,3]
[408710439,1774164647731,-151.0,0.00022596,3]
[408710441,1774164647741,-151.0,0.00022596,3]
[408710443,1774164647750,-151.0,0.00022596,3]
[408710444,1774164647759,-151.0,0.00022596,3]
[408710446,1774164647769,-151.0,0.00022596,3]
[408710448,1774164647778,-151.0,0.00022596,3]
[408710450,1774164647787,-151.0,0.00022596,3]
[408710452,1774164647796,-151.0,0.00022596,3]
[408710454,1774164647805,-151.0,0.00022596,3]
[408710456,1774164647815,-151.0,0.00022596,3]
[408710458,1774164647824,-151.0,0.00022596,3]
[408710460,1774164647833,-151.0,0.00022596,3]
[408710462,1774164647842,-151.0,0.00022596,3]
[408710464,1774164647852,-151.0,0.00022596,3]
[408710466,1774164647861,-151.0,0.00022596,3]
[408710468,1774164647870,-151.0,0.00022596,3]
[408710470,1774164647879,-151.0,0.00022596,3]
[408710472,1774164647889,-151.0,0.00022596,3]
[408710474,1774164647898,-151.0,0.00022596,3]
[408710476,1774164647908,-151.0,0.00022596,3]
[408710478,1774164647917,-151.0,0.00022596,3]
[408710480,1774164647927,-151.0,0.00022596,3]
[408710482,1774164647936,-151.0,0.00022596,3]
[408710484,1774164647946,-151.0,0.00022596,3]
[408710486,1774164647955,-151.0,0.00022596,3]
[408710488,1774164647964,-151.0,0.00022596,3]
[408710490,1774164647973,-151.0,0.00022596,3]
[408710492,1774164647983,-151.0,0.00022596,3]
[408710494,1774164647992,-186.40175107,0.00022596,3]
[408710495,1774164648001,-151.0,0.00022596,3]
[408710498,1774164648011,-151.0,0.00022596,3]
[408710499,1774164648021,-151.0,0.00022596,3]
[408710502,1774164648031,-151.0,0.00022596,3]
[408710503,1774164648040,-151.0,0.00022596,3]
[408710505,1774164648051,-151.0,0.00022596,3]
[408710507,1774164648060,-151.0,0.00022596,3]
[408710509,1774164648070,-151.0,0.00022596,3]
[408710511,1774164648080,-292.0,0.00022596,3]
[408710513,1774164648090,-151.0,0.000226,7]
[408710515,1774164648100,-1034.43,0.000226,2]
[408710517,1774164648111,-1316.1439081,0.00022642,2]
[408710519,1774164648120,-1199.94803938,0.00022642,2]
[408710521,1774164648130,-1500.0,0.00022642,2]
[408710524,1774164648147,-959.03395497,0.00022642,2]
[408710526,1774164648158,-1724.86782962,0.00022642,2]
[408710528,1774164648168,-2076.19977557,0.00022642,2]
[408710530,1774164648178,-200.0,0.00022647,2]
[408710531,1774164648190,-2065.76081502,0.00022648,2]
[408710534,1774164648201,-2000.0,0.00022648,2]
[408710535,1774164648210,-2000.0,0.00022648,2]
[408710538,1774164648219,-182.50568488,0.0002265,2]
[408710539,1774164648230,-450.0,0.00022658,2]
[408710542,1774164648240,-2000.0,0.00022658,2]
[408710543,1774164648250,-2148.50340937,0.00022658,2]
[408710545,1774164648261,-1342.17,0.00022672,2]
[408710548,1774164648271,-1342.17,0.00022672,2]
[408710550,1774164648281,-1342.17,0.00022672,2]
[408710552,1774164648290,-1342.17,0.00022672,2]
[408710554,1774164648300,-1342.25018177,0.00022672,2]
[408710556,1774164648310,-1355.59,0.00022672,2]
[408710558,1774164648319,-1355.59,0.00022672,2]
[408710560,1774164648330,-1355.59,0.00022672,2]
[408710562,1774164648340,-1355.59,0.00022672,2]
[408710564,1774164648350,-1355.76906169,0.00022672,2]
[408710566,1774164648360,-509.39,0.00022672,2]
[408710568,1774164648369,-509.39,0.00022672,2]
[408710570,1774164648379,-509.39,0.00022672,2]
[408710572,1774164648390,-509.39,0.00022672,2]
[408710574,1774164648403,-509.42444516,0.00022672,2]
[408710576,1774164648412,-160.06688112,0.00022673,2]
[408710578,1774164648421,-189.74891837,0.00022682,19]
[408710580,1774164648431,-2099.52,0.00022694,2]
[408710582,1774164648442,-2099.52,0.00022694,2]
[408710584,1774164648451,-1619.12,0.00022694,2]
[408710586,1774164648461,-1619.12,0.00022694,2]
[408710588,1774164648472,-641.23,0.00022694,2]
[408710590,1774164648482,-641.23,0.00022694,2]
[408710592,1774164648491,-2186.95,0.00022694,2]
[408710594,1774164648501,-2186.95,0.00022694,2]
[408710596,1774164648510,-654.84,0.00022694,2]
[408710598,1774164648519,-654.84,0.00022694,2]
[408710600,1774164648529,-500.0,0.00022694,2]
[408710602,1774164648539,-500.0,0.00022694,2]
[408710604,1774164648549,-763.91,0.00022694,2]
[408710606,1774164648559,-763.91,0.00022694,2]
[408710608,1774164648568,-500.0,0.00022694,2]
[408710610,1774164648578,-500.0,0.00022694,2]
[408710612,1774164648588,-500.0,0.00022694,2]
[408710614,1774164648597,-500.0,0.00022694,2]
[408710616,1774164648607,-839.98,0.00022694,2]
[408710618,1774164648616,-839.98,0.00022694,2]
[408710620,1774164648626,-2099.52,0.00022696,2]
[408710622,1774164648635,-2099.52,0.00022696,2]
[408710624,1774164648645,-2099.52,0.00022696,2]
[408710626,1774164648655,-2099.52,0.00022696,2]
[408710628,1774164648664,-2099.52,0.00022696,2]
[408710630,1774164648674,-2099.52,0.00022696,2]
[408710632,1774164648683,-2099.52,0.00022696,2]
[408710634,1774164648693,-2099.52,0.00022696,2]
[408710636,1774164648702,-2099.52,0.00022696,2]
[408710638,1774164648713,-2099.52,0.00022696,2]
[408710640,1774164648723,-2099.52,0.00022696,2]
[408710642,1774164648732,-2099.52,0.00022696,2]
[408710644,1774164648742,-2099.52,0.00022696,2]
[408710646,1774164648751,-2099.52,0.00022696,2]
[408710648,1774164648761,-2099.52,0.00022696,2]
[408710649,1774164648770,-2099.61203943,0.00022696,2]
[408710650,1774164648780,-1619.12,0.00022696,2]
[408710651,1774164648790,-1619.12,0.00022696,2]
[408710652,1774164648799,-1619.12,0.00022696,2]
[408710653,1774164648808,-1619.12,0.00022696,2]
[408710654,1774164648818,-1619.12,0.00022696,2]
[408710655,1774164648827,-1619.12,0.00022696,2]
[408710656,1774164648837,-1619.12,0.00022696,2]
[408710657,1774164648846,-1619.12,0.00022696,2]
[408710658,1774164648856,-1619.12,0.00022696,2]
[408710659,1774164648866,-1619.12,0.00022696,2]
[408710660,1774164648875,-1619.12,0.00022696,2]
[408710661,1774164648884,-1619.12,0.00022696,2]
[408710663,1774164648894,-1619.12,0.00022696,2]
[408710665,1774164648904,-1619.12,0.00022696,2]
[408710667,1774164648913,-1619.12,0.00022696,2]
[408710669,1774164648923,-1619.34619853,0.00022696,2]
[408710671,1774164648933,-641.23,0.00022696,2]
[408710673,1774164648942,-641.23,0.00022696,2]
[408710675,1774164648952,-641.23,0.00022696,2]
[408710677,1774164648961,-641.23,0.00022696,2]
[408710679,1774164648971,-641.23,0.00022696,2]
[408710681,1774164648980,-641.23,0.00022696,2]
[408710683,1774164648989,-641.23,0.00022696,2]
[408710685,1774164648999,-641.23,0.00022696,2]
[408710687,1774164649008,-641.23,0.00022696,2]
[408710689,1774164649017,-641.23,0.00022696,2]
[408710691,1774164649027,-641.23,0.00022696,2]
[408710693,1774164649036,-641.23,0.00022696,2]
[408710695,1774164649046,-641.23,0.00022696,2]
[408710697,1774164649055,-641.23,0.00022696,2]
[408710699,1774164649065,-641.23,0.00022696,2]
[408710701,1774164649074,-641.39377404,0.00022696,2]
[408710703,1774164649084,-2186.95,0.00022696,2]
[408710705,1774164649094,-2186.95,0.00022696,2]
[408710708,1774164649104,-2186.95,0.00022696,2]
[408710710,1774164649113,-2186.95,0.00022696,2]
[408710711,1774164649123,-2186.95,0.00022696,2]
[408710714,1774164649132,-2186.95,0.00022696,2]
[408710716,1774164649142,-2186.95,0.00022696,2]
[408710718,1774164649151,-2186.95,0.00022696,2]
[408710719,1774164649160,-2186.95,0.00022696,2]
[408710722,1774164649170,-2186.95,0.00022696,2]
[408710724,1774164649179,-2186.95,0.00022696,2]
[408710726,1774164649189,-2186.95,0.00022696,2]
[408710728,1774164649199,-2186.95,0.00022696,2]
[408710730,1774164649208,-2186.95,0.00022696,2]
[408710732,1774164649218,-2186.95,0.00022696,2]
[408710734,1774164649227,-2187.06346706,0.00022696,2]
[408710736,1774164649237,-654.84,0.00022696,2]
[408710738,1774164649247,-654.84,0.00022696,2]
[408710740,1774164649256,-654.84,0.00022696,2]
[408710742,1774164649267,-654.84,0.00022696,2]
[408710744,1774164649277,-654.84,0.00022696,2]
[408710746,1774164649286,-654.84,0.00022696,2]
[408710748,1774164649296,-654.84,0.00022696,2]
[408710750,1774164649307,-654.84,0.00022696,2]
[408710753,1774164649317,-654.84,0.00022696,2]
[408710755,1774164649327,-654.84,0.00022696,2]
[408710757,1774164649337,-654.84,0.00022696,2]
[408710759,1774164649346,-654.84,0.00022696,2]
[408710761,1774164649356,-654.84,0.00022696,2]
[408710763,1774164649365,-654.84,0.00022696,2]
[408710765,1774164649375,-654.84,0.00022696,2]
[408710767,1774164649384,-654.90336141,0.00022696,2]
[408710769,1774164649394,-500.0,0.00022696,2]
[408710771,1774164649405,-500.0,0.00022696,2]
[408710773,1774164649415,-763.91,0.00022696,2]
[408710775,1774164649424,-500.0,0.00022696,2]
[408710777,1774164649435,-763.91,0.00022696,2]
[408710779,1774164649446,-500.0,0.00022696,2]
[408710781,1774164649456,-763.91,0.00022696,2]
[408710783,1774164649466,-500.0,0.00022696,2]
[408710785,1774164649477,-763.91,0.00022696,2]
[408710787,1774164649486,-500.0,0.00022696,2]
[408710789,1774164649496,-763.91,0.00022696,2]
[408710791,1774164649505,-500.0,0.00022696,2]
[408710793,1774164649515,-500.0,0.00022696,2]
[408710795,1774164649524,-763.91,0.00022696,2]
[408710797,1774164649533,-500.0,0.00022696,2]
[408710799,1774164649543,-763.91,0.00022696,2]
[408710801,1774164649552,-500.0,0.00022696,2]
[408710803,1774164649561,-763.91,0.00022696,2]
[408710806,1774164649571,-500.0,0.00022696,2]
[408710808,1774164649580,-763.91,0.00022696,2]
[408710809,1774164649590,-500.0,0.00022696,2]
[408710812,1774164649599,-763.91,0.00022696,2]
[408710814,1774164649609,-763.91,0.00022696,2]
[408710816,1774164649619,-500.0,0.00022696,2]
[408710818,1774164649628,-763.91,0.00022696,2]
[408710820,1774164649639,-500.0,0.00022696,2]
[408710822,1774164649650,-763.91,0.00022696,2]
[408710824,1774164649660,-184.95543513,0.00022696,2]
[408710826,1774164649670,-763.91,0.00022696,2]
[408710828,1774164649682,-763.91,0.00022696,2]
[408710830,1774164649691,-764.05747255,0.00022696,2]
[408710832,1774164649700,-500.0,0.00022696,2]
[408710835,1774164649710,-500.0,0.00022696,2]
[408710837,1774164649721,-500.0,0.00022696,2]
[408710839,1774164649731,-500.0,0.00022696,2]
[408710841,1774164649744,-500.0,0.00022696,2]
[408710843,1774164649761,-500.0,0.00022696,2]
[408710845,1774164649771,-500.0,0.00022696,2]
[408710847,1774164649780,-500.0,0.00022696,2]
[408710849,1774164649790,-500.0,0.00022696,2]
[408710851,1774164649800,-500.0,0.00022696,2]
[408710853,1774164649810,-400.62681213,0.00022696,2]
[408710855,1774164649820,-500.0,0.00022696,2]
[408710857,1774164649830,-500.0,0.00022696,2]
[408710859,1774164649840,-500.0,0.00022696,2]
[408710861,1774164649850,-500.0,0.00022696,2]
[408710863,1774164649859,-224.49791821,0.00022696,2]
[408710865,1774164649872,-839.98,0.00022696,2]
[408710867,1774164649881,-839.98,0.00022696,2]
[408710869,1774164649891,-839.98,0.00022696,2]
[408710871,1774164649901,-839.98,0.00022696,2]
[408710873,1774164649911,-839.98,0.00022696,2]
[408710875,1774164649920,-839.98,0.00022696,2]
[408710878,1774164649931,-839.98,0.00022696,2]
[408710880,1774164649941,-839.98,0.00022696,2]
[408710882,1774164649950,-839.98,0.00022696,2]
[408710884,1774164649961,-839.98,0.00022696,2]
[408710886,1774164649972,-839.98,0.00022696,2]
[408710888,1774164649981,-839.98,0.00022696,2]
[408710890,1774164649991,-839.98,0.00022696,2]
[408710892,1774164650002,-839.98,0.00022696,2]
[408710894,1774164650012,-839.98,0.00022696,2]
[408710896,1774164650022,-840.04,0.00022696,2]